bitfinex-derivatives/quotes_BTCF0:USTF0_20241231
["timestamp","ask_amount","ask_price","bid_price","bid_amount"]
[1735680453920,0.054478,93669.0,93668.0,0.067]
[1735680454113,0.0692834,93669.0,93668.0,0.067]
[1735680454526,0.0682834,93669.0,93668.0,0.067]
[1735680454835,0.0692834,93669.0,93668.0,0.067]
[1735680455125,0.0692834,93669.0,93668.0,0.034]
[1735680459027,0.3608,93679.0,93668.0,0.002]
[1735680459221,0.053478,93669.0,93668.0,0.002]
[1735680461528,0.054478,93669.0,93668.0,0.002]
[1735680464424,0.06931895,93669.0,93668.0,0.002]
[1735680471739,0.053486,93654.0,93653.0,0.19148628]
[1735680472428,0.053488,93651.0,93649.0,0.03200134]
[1735680473632,0.054488,93651.0,93650.0,0.0364]
[1735680474325,0.055488,93651.0,93650.0,0.0364]
[1735680478243,0.053488,93651.0,93650.0,0.3555438]
[1735680479239,0.053488,93651.0,93650.0,0.52315362]
[1735680481546,0.0319,93662.0,93654.0,0.053484]
[1735680481939,0.0319,93662.0,93656.0,0.053485]
[1735680482444,0.0319,93662.0,93659.0,0.3101351]
[1735680483645,0.0329,93662.0,93659.0,0.053483]
[1735680484248,0.04799062,93662.0,93660.0,0.19248431]
[1735680485335,0.04699062,93662.0,93660.0,0.19248431]
[1735680485648,0.04699062,93662.0,93659.0,0.056483]
[1735680486039,0.04699062,93662.0,93659.0,0.053483]
[1735680486237,0.04699062,93662.0,93658.0,0.19248431]
[1735680486441,0.04699062,93662.0,93656.0,0.19248431]
[1735680487042,0.04699062,93662.0,93656.0,0.053485]
[1735680487243,0.01509062,93662.0,93661.0,0.053482]
[1735680487539,0.0145248,93681.0,93680.0,0.053471]
[1735680487759,0.3608,93696.0,93688.0,0.053467]
[1735680488244,0.3608,93696.0,93689.0,0.053466]
[1735680488446,0.3608,93696.0,93690.0,0.053465]
[1735680489036,0.3608,93696.0,93685.0,0.053468]
[1735680489344,0.3608,93696.0,93686.0,0.053467]
[1735680489545,0.08767623,93691.0,93686.0,0.053467]
[1735680490851,0.09667623,93691.0,93686.0,0.053467]
[1735680491056,0.09667623,93691.0,93690.0,0.3608]
[1735680491553,0.015,93691.0,93690.0,0.3608]
[1735680491945,0.015,93691.0,93682.0,0.3608]
[1735680492342,0.016,93691.0,93682.0,0.3608]
[1735680493746,0.014,93691.0,93682.0,0.3608]
[1735680494346,0.013,93691.0,93682.0,0.3608]
[1735680495445,0.013,93691.0,93683.0,0.05347]
[1735680496953,0.014,93691.0,93682.0,0.3608]
[1735680497946,0.005,93691.0,93682.0,0.3608]
[1735680498154,0.013,93691.0,93682.0,0.3608]
[1735680498643,0.013,93691.0,93683.0,0.3608]
[1735680498847,0.03579678,93691.0,93683.0,0.3608]
[1735680499053,0.013,93691.0,93683.0,0.3608]
[1735680499651,0.005,93691.0,93683.0,0.3608]
[1735680499855,0.008,93691.0,93683.0,0.3608]
[1735680500152,0.03066732,93691.0,93683.0,0.3608]
[1735680500354,0.008,93691.0,93683.0,0.3608]
[1735680502949,0.005,93691.0,93683.0,0.3608]
[1735680503149,0.009,93691.0,93683.0,0.3608]
[1735680503658,0.01,93691.0,93683.0,0.3608]
[1735680503954,0.006,93691.0,93683.0,0.3608]
[1735680504169,0.004,93691.0,93683.0,0.3608]
[1735680504461,0.01,93691.0,93683.0,0.3608]
[1735680506359,0.01,93691.0,93677.0,0.053473]
[1735680506554,0.01,93691.0,93683.0,0.3608]
[1735680507558,0.009,93691.0,93683.0,0.3608]
[1735680507863,0.009,93691.0,93690.0,0.053466]
[1735680508558,0.009,93691.0,93684.0,0.0332]
[1735680509454,0.01,93691.0,93684.0,0.0332]
[1735680509656,0.013,93691.0,93684.0,0.0332]
[1735680510163,0.007,93691.0,93684.0,0.0332]
[1735680510359,0.011,93691.0,93684.0,0.0332]
[1735680510758,0.009,93691.0,93684.0,0.0332]
[1735680511260,0.004,93691.0,93684.0,0.0332]
[1735680511463,0.011,93691.0,93684.0,0.0332]
[1735680511854,0.011,93691.0,93683.0,0.3608]
[1735680513762,0.006,93691.0,93683.0,0.3608]
[1735680513960,0.01,93691.0,93678.0,0.053473]
[1735680514158,0.01,93691.0,93681.0,0.3608]
[1735680514360,0.011,93691.0,93678.0,0.053473]
[1735680514566,0.08767623,93688.0,93678.0,0.053473]
[1735680514959,0.08767623,93688.0,93683.0,0.3608]
[1735680516360,0.01,93691.0,93687.0,0.053467]
[1735680516961,0.004,93688.0,93687.0,0.053467]
[1735680518066,0.012,93688.0,93687.0,0.053467]
[1735680518459,0.012,93688.0,93683.0,0.35406203]
[1735680518859,0.012,93688.0,93687.0,0.053467]
[1735680519263,0.008,93688.0,93687.0,0.053467]
[1735680519661,0.005,93691.0,93683.0,0.35406203]
[1735680519970,0.004,93688.0,93687.0,0.053467]
[1735680520167,0.009,93688.0,93687.0,0.053467]
[1735680520368,0.013,93688.0,93687.0,0.053467]
[1735680520864,0.0225501,93692.0,93683.0,0.35406203]
[1735680521168,0.01,93691.0,93689.0,0.053466]
[1735680521369,0.01,93691.0,93690.0,0.00758959]
[1735680522261,0.01,93691.0,93684.0,0.053469]
[1735680522657,0.008,93688.0,93684.0,0.053469]
[1735680523264,0.005,93688.0,93684.0,0.053469]
[1735680523962,0.002,93688.0,93684.0,0.053469]
[1735680524162,0.004,93688.0,93684.0,0.053469]
[1735680525170,0.004,93688.0,93683.0,0.35406203]
[1735680525372,0.004,93688.0,93687.0,0.053467]
[1735680525879,0.002,93688.0,93687.0,0.3608]
[1735680526059,0.002,93688.0,93687.0,0.414267]
[1735680526668,0.004,93688.0,93687.0,0.414267]
[1735680527071,0.002,93688.0,93687.0,0.414267]
[1735680527262,0.004,93688.0,93687.0,0.414267]
[1735680527466,0.37548364,93702.0,93696.0,0.053462]
[1735680527669,0.37548364,93702.0,93701.0,0.3608]
[1735680528774,0.37748364,93702.0,93701.0,0.3608]
[1735680528970,0.0247288,93702.0,93701.0,0.3608]
[1735680529476,0.0257288,93702.0,93701.0,0.3608]
[1735680529864,0.0287288,93702.0,93701.0,0.3608]
[1735680530070,0.0257288,93702.0,93701.0,0.3608]
[1735680530482,0.0287288,93702.0,93701.0,0.3608]
[1735680536384,0.0247288,93702.0,93701.0,0.3608]
[1735680536593,0.0277288,93702.0,93701.0,0.3608]
[1735680536984,0.0247288,93702.0,93686.0,0.3608]
[1735680537187,0.08767623,93696.0,93686.0,0.3608]
[1735680537389,0.0625,93695.0,93686.0,0.3608]
[1735680538901,0.0645,93695.0,93686.0,0.3608]
[1735680539888,0.0655,93695.0,93686.0,0.3608]
[1735680540283,0.0655,93695.0,93694.0,0.3608]
[1735680541498,0.0665,93695.0,93694.0,0.3608]
[1735680542799,0.0655,93695.0,93694.0,0.3608]
[1735680542991,0.0705,93695.0,93694.0,0.3608]
[1735680549103,0.008,93695.0,93694.0,0.3608]
[1735680556116,0.008,93695.0,93694.0,0.28721404]
[1735680556509,0.008,93695.0,93694.0,0.17884279]
[1735680561320,0.008,93695.0,93694.0,0.23230579]
[1735680567716,0.008,93695.0,93694.0,0.414263]
[1735680570118,0.1,93700.0,93699.0,0.053461]
[1735680572123,0.104,93700.0,93699.0,0.053461]
[1735680572543,0.111,93700.0,93699.0,0.054461]
[1735680573530,0.104,93700.0,93699.0,0.053461]
[1735680573719,0.105,93700.0,93699.0,0.053461]
[1735680574025,0.103,93700.0,93699.0,0.053461]
[1735680575826,0.102,93700.0,93694.0,0.414262]
[1735680576332,0.104,93700.0,93694.0,0.414262]
[1735680576530,0.102,93700.0,93694.0,0.414262]
[1735680576719,0.102,93700.0,93699.0,0.001]
[1735680577030,0.101,93700.0,93699.0,0.001]
[1735680577724,0.101,93700.0,93696.0,0.053462]
[1735680578428,0.1,93700.0,93696.0,0.053462]
[1735680578732,0.102,93700.0,93696.0,0.053462]
[1735680579628,0.105,93700.0,93696.0,0.053462]
[1735680580231,0.103,93700.0,93696.0,0.053462]
[1735680581631,0.101,93700.0,93696.0,0.053462]
[1735680581929,0.103,93700.0,93696.0,0.053462]
[1735680584725,0.103,93700.0,93694.0,0.3608]
[1735680585123,0.0325,93699.0,93685.0,0.414268]
[1735680585333,0.05758896,93695.0,93685.0,0.414268]
[1735680585926,0.05758896,93695.0,93687.0,0.053467]
[1735680587127,0.05758896,93695.0,93694.0,0.3608]
[1735680587430,0.05858896,93695.0,93694.0,0.3608]
[1735680587630,0.001,93695.0,93694.0,0.3608]
[1735680588526,0.002,93695.0,93694.0,0.3608]
[1735680588922,0.005,93695.0,93694.0,0.3608]
[1735680589138,0.007,93695.0,93694.0,0.3608]
[1735680591438,0.007,93695.0,93694.0,0.414263]
[1735680591836,0.1,93700.0,93694.0,0.7216]
[1735680592035,0.005,93695.0,93694.0,0.775063]
[1735680592431,0.002,93695.0,93694.0,0.775063]
[1735680592838,0.05758896,93704.0,93698.0,0.053461]
[1735680593039,0.05758896,93704.0,93703.0,0.3608]
[1735680593236,0.09680598,93708.0,93703.0,0.3608]
[1735680595346,0.002,93704.0,93703.0,0.3608]
[1735680595935,0.10080598,93708.0,93703.0,0.3608]
[1735680596136,0.10380598,93708.0,93703.0,0.3608]
[1735680596842,0.006,93704.0,93703.0,0.414258]
[1735680598436,0.004,93704.0,93703.0,0.414258]
[1735680598940,0.04327962,93708.0,93704.0,0.053457]
[1735680599342,0.04027962,93708.0,93703.0,0.3608]
[1735680599542,0.002,93704.0,93703.0,0.3608]
[1735680600149,0.03627962,93708.0,93703.0,0.3608]
[1735680600150,0.04027962,93708.0,93703.0,0.3608]
[1735680601653,0.03827962,93708.0,93703.0,0.3608]
[1735680601842,0.004,93704.0,93703.0,0.3608]
[1735680602241,0.002,93704.0,93703.0,0.3608]
[1735680602643,0.004,93708.0,93703.0,0.3608]
[1735680603044,0.004,93704.0,93703.0,0.3608]
[1735680603545,0.002,93704.0,93703.0,0.3608]
[1735680603742,0.004,93704.0,93703.0,0.3608]
[1735680605042,0.003,93704.0,93703.0,0.3608]
[1735680605241,0.007,93704.0,93703.0,0.3608]
[1735680605753,0.002,93704.0,93703.0,0.3608]
[1735680605954,0.004,93704.0,93703.0,0.3608]
[1735680608039,0.002,93704.0,93703.0,0.3608]
[1735680608241,0.003,93704.0,93703.0,0.3608]
[1735680608437,0.007,93704.0,93703.0,0.3608]
[1735680609244,0.003,93704.0,93703.0,0.3608]
[1735680609446,0.008,93704.0,93703.0,0.28822391]
[1735680611254,0.008,93704.0,93703.0,0.22802506]
[1735680611442,0.008,93704.0,93703.0,0.001]
[1735680611748,0.005,93704.0,93692.0,0.3608]
[1735680611944,0.11517792,93702.0,93692.0,0.3608]
[1735680612139,0.0315,93701.0,93692.0,0.3608]
[1735680612938,0.0315,93701.0,93684.0,0.36368096]
[1735680613140,0.05758896,93694.0,93684.0,0.36240096]
[1735680614043,0.05758896,93694.0,93684.0,0.3608]
[1735680615150,0.05758896,93694.0,93688.0,0.053467]
[1735680615354,0.05758896,93700.0,93688.0,0.053467]
[1735680615960,0.05758896,93700.0,93690.0,0.053466]
[1735680616548,0.001,93694.0,93690.0,0.053466]
[1735680616853,0.002,93694.0,93690.0,0.053466]
[1735680618253,0.001,93694.0,93690.0,0.053466]
[1735680618447,0.06158896,93700.0,93690.0,0.053466]
[1735680618956,0.004,93700.0,93695.0,0.053462]
[1735680619259,0.47960001,93709.0,93699.0,0.3608]
[1735680619559,0.47960001,93709.0,93703.0,0.053458]
[1735680619857,0.47904,93709.0,93703.0,0.053458]
[1735680620261,0.52527259,93709.0,93703.0,0.053458]
[1735680621649,0.002,93708.0,93703.0,0.053458]
[1735680622153,0.53127259,93709.0,93703.0,0.053458]
[1735680622860,0.004,93708.0,93703.0,0.053458]
[1735680623058,0.006,93708.0,93703.0,0.053458]
[1735680623356,0.002,93708.0,93703.0,0.053458]
[1735680623753,0.53227259,93709.0,93703.0,0.053458]
[1735680625250,0.52927259,93709.0,93703.0,0.053458]
[1735680625453,0.003,93708.0,93703.0,0.053458]
[1735680625749,0.007,93708.0,93703.0,0.053458]
[1735680625954,0.007,93708.0,93699.0,0.41426]
[1735680626150,0.004,93708.0,93699.0,0.41426]
[1735680626347,0.3608,93705.0,93691.0,0.3934]
[1735680626552,0.08772881,93701.0,93691.0,0.3608]
[1735680626747,0.0303,93704.0,93691.0,0.414265]
[1735680627159,0.0303,93704.0,93696.0,0.053462]
[1735680627453,0.3608,93705.0,93697.0,0.053461]
[1735680629259,0.3618,93705.0,93697.0,0.053461]
[1735680629565,0.001,93705.0,93704.0,0.053458]
[1735680630348,0.002,93705.0,93704.0,0.053458]
[1735680630863,0.004,93705.0,93704.0,0.053458]
[1735680632362,0.003,93705.0,93704.0,0.053458]
[1735680632556,0.008,93705.0,93704.0,0.053458]
[1735680635357,0.05839871,93734.0,93712.0,0.053453]
[1735680635550,0.1,93725.0,93724.0,0.053446]
[1735680636558,0.113,93725.0,93724.0,0.053446]
[1735680637367,0.116,93725.0,93724.0,0.054446]
[1735680637667,0.116,93725.0,93724.0,0.001]
[1735680638658,0.116,93725.0,93721.0,0.053448]
[1735680638859,0.116,93725.0,93717.0,0.3446]
[1735680639068,0.116,93725.0,93721.0,0.003448]
[1735680639256,0.116,93725.0,93717.0,0.3446]
[1735680639456,0.116,93725.0,93721.0,0.053447]
[1735680639857,0.116,93725.0,93721.0,0.054447]
[1735680640156,0.115,93725.0,93721.0,0.055447]
[1735680640364,0.106,93725.0,93721.0,0.054447]
[1735680640564,0.115,93725.0,93721.0,0.054447]
[1735680640965,0.053448,93722.0,93721.0,0.054447]
[1735680641858,0.053448,93722.0,93721.0,0.001]
[1735680642057,0.053448,93722.0,93717.0,0.3456]
[1735680642261,0.006,93722.0,93721.0,0.054446]
[1735680642651,0.006,93722.0,93721.0,0.055446]
[1735680643161,0.1,93725.0,93724.0,0.053446]
[1735680643962,0.009,93722.0,93721.0,0.054448]
[1735680645460,0.009,93722.0,93721.0,0.055448]
[1735680645663,0.015,93722.0,93721.0,0.055448]
[1735680646658,0.006,93722.0,93721.0,0.054448]
[1735680647573,0.006,93722.0,93721.0,0.3618]
[1735680647774,0.015,93722.0,93721.0,0.3628]
[1735680647966,0.015,93722.0,93721.0,0.416248]
[1735680650676,0.015,93722.0,93721.0,0.366248]
[1735680652769,0.00056001,93749.0,93748.0,0.053433]
[1735680652970,0.06516023,93750.0,93749.0,0.053432]
[1735680655961,0.06516023,93750.0,93748.0,0.77696772]
[1735680656166,0.06516023,93750.0,93748.0,0.77548772]
[1735680656974,0.06516023,93750.0,93749.0,0.053432]
[1735680657570,2.3e-07,93750.0,93749.0,0.053432]
[1735680659178,2.3e-07,93750.0,93749.0,0.055432]
[1735680659677,0.3608,93797.0,93749.0,0.355432]
[1735680659880,0.0321,93784.0,93773.0,0.414218]
[1735680660178,0.0316,93795.0,93774.0,0.053418]
[1735680660480,0.0639,93794.0,93774.0,0.053418]
[1735680662184,0.0639,93794.0,93773.0,0.3608]
[1735680662482,0.106,93775.0,93773.0,0.3608]
[1735680662872,0.106,93775.0,93774.0,0.053418]
[1735680663683,0.115,93775.0,93774.0,0.004418]
[1735680663881,0.115,93775.0,93774.0,0.001]
[1735680664078,0.109,93775.0,93774.0,0.053418]
[1735680664473,0.006,93775.0,93774.0,0.053418]
[1735680664779,0.0639,93794.0,93793.0,0.053407]
[1735680664985,0.0639,93794.0,93793.0,0.414207]
[1735680666172,0.0699,93794.0,93793.0,0.415207]
[1735680667281,0.0749,93794.0,93793.0,0.416207]
[1735680670875,0.0749,93794.0,93793.0,0.366207]
[1735680671086,0.0749,93794.0,93793.0,0.316207]
[1735680671284,0.0428,93794.0,93793.0,0.316207]
[1735680676182,0.0438,93794.0,93793.0,0.316207]
[1735680676576,0.0438,93794.0,93793.0,0.266207]
[1735680677382,0.0418,93794.0,93793.0,0.265207]
[1735680677582,0.0418,93794.0,93793.0,0.215207]
[1735680679779,0.0358,93794.0,93793.0,0.214207]
[1735680680682,0.0318,93794.0,93793.0,0.214207]
[1735680681687,0.0318,93794.0,93793.0,0.164207]
[1735680682481,0.0318,93794.0,93793.0,0.165207]
[1735680683590,0.0318,93794.0,93793.0,0.169207]
[1735680683789,0.0318,93794.0,93793.0,0.168207]
[1735680683986,0.0318,93794.0,93793.0,0.169207]
[1735680685794,0.0318,93794.0,93793.0,0.31049044]
[1735680686393,0.0318,93794.0,93793.0,0.122207]
[1735680686981,0.0318,93794.0,93793.0,0.31263113]
[1735680687880,0.0318,93794.0,93793.0,0.120207]
[1735680688597,0.0318,93794.0,93793.0,0.118207]
[1735680688794,0.0318,93794.0,93793.0,0.122207]
[1735680689295,0.2,93800.0,93793.0,0.122207]
[1735680690396,0.2,93800.0,93793.0,0.121207]
[1735680690589,0.2,93800.0,93794.0,0.25523217]
[1735680690990,0.2,93800.0,93799.0,0.053404]
[1735680691294,0.2,93800.0,93799.0,0.038404]
[1735680692791,0.5608,93800.0,93794.0,0.21123217]
[1735680693090,0.5608,93800.0,93794.0,0.006]
[1735680693300,0.5608,93800.0,93799.0,0.053404]
[1735680693484,0.5608,93800.0,93799.0,0.055404]
[1735680693887,0.614203,93800.0,93799.0,0.055404]
[1735680694694,0.614203,93800.0,93799.0,0.056404]
[1735680695096,0.614203,93800.0,93799.0,0.054404]
[1735680695594,0.614203,93800.0,93799.0,0.053404]
[1735680695595,0.615203,93800.0,93799.0,0.053404]
[1735680698187,0.5618,93800.0,93799.0,0.053404]
[1735680699804,0.5618,93800.0,93799.0,0.054404]
[1735680700392,0.5608,93800.0,93799.0,0.054404]
[1735680701293,0.5608,93800.0,93799.0,0.055404]
[1735680703503,0.2,93800.0,93799.0,0.055404]
[1735680704102,0.2,93800.0,93799.0,0.0936276]
[1735680705099,0.2,93800.0,93799.0,0.055404]
[1735680713725,0.2,93800.0,93799.0,0.054404]
[1735680713926,0.2,93800.0,93799.0,0.055404]
[1735680715224,0.2,93800.0,93799.0,0.054404]
[1735680715529,0.2,93800.0,93799.0,0.056404]
[1735680717323,0.253403,93800.0,93799.0,0.056404]
[1735680720733,0.053414,93781.0,93780.0,0.05501222]
[1735680720931,0.414214,93781.0,93780.0,0.00159922]
[1735680721930,0.414214,93781.0,93780.0,0.01059922]
[1735680722539,0.053415,93780.0,93766.0,0.053422]
[1735680722836,0.053415,93780.0,93761.0,0.00159979]
[1735680722837,0.053424,93763.0,93761.0,0.00159979]
[1735680723142,0.0313,93762.0,93761.0,0.05502479]
[1735680723333,0.084725,93762.0,93761.0,0.05502479]
[1735680723837,0.084725,93762.0,93761.0,0.00159979]
[1735680724838,0.117325,93762.0,93761.0,0.00159979]
[1735680725139,0.117325,93762.0,93761.0,0.01059979]
[1735680725736,0.053435,93745.0,93744.0,0.053435]
[1735680727032,0.053435,93745.0,93744.0,0.058435]
[1735680727432,0.053435,93745.0,93744.0,0.005]
[1735680728629,0.054435,93745.0,93744.0,0.067435]
[1735680735746,0.054435,93745.0,93744.0,0.014]
[1735680736242,0.054435,93745.0,93744.0,0.067435]
[1735680736438,0.001,93745.0,93744.0,0.067435]
[1735680736844,0.054434,93745.0,93744.0,0.067435]
[1735680738448,0.001,93745.0,93744.0,0.067435]
[1735680740047,0.22793912,93751.0,93744.0,0.014]
[1735680740840,0.053433,93748.0,93747.0,0.053432]
[1735680741647,0.22793912,93751.0,93750.0,0.053432]
[1735680742146,0.22893912,93751.0,93750.0,0.053432]
[1735680742647,0.28137012,93751.0,93750.0,0.053432]
[1735680743246,0.28237012,93751.0,93750.0,0.061432]
[1735680744048,0.28237012,93751.0,93750.0,0.064432]
[1735680752256,0.28237012,93751.0,93750.0,0.014432]
[1735680752460,0.28237012,93751.0,93750.0,0.011]
[1735680752953,0.28237012,93751.0,93750.0,0.064432]
[1735680753357,0.28237012,93751.0,93750.0,0.011]
[1735680765070,0.415231,93751.0,93750.0,0.011]
[1735680770865,0.054431,93751.0,93750.0,0.011]
[1735680771174,0.415231,93751.0,93750.0,0.011]
[1735680773264,0.415231,93751.0,93750.0,0.064432]
[1735680792086,0.00160018,93770.0,93769.0,0.053421]
[1735680794385,0.00260018,93770.0,93769.0,0.053421]
[1735680794775,0.00360018,93770.0,93769.0,0.053421]
[1735680795776,0.00260018,93770.0,93769.0,0.053421]
[1735680795978,0.00360018,93770.0,93769.0,0.053421]
[1735680798477,0.002,93770.0,93769.0,0.053421]
[1735680800686,0.001,93770.0,93769.0,0.053421]
[1735680800875,0.3608,93780.0,93769.0,0.058421]
[1735680801080,0.3608,93780.0,93779.0,0.053415]
[1735680801790,0.532212,93785.0,93784.0,0.053412]
[1735680801975,0.4788,93785.0,93784.0,0.053412]
[1735680803880,0.4798,93785.0,93784.0,0.053412]
[1735680804085,0.4838,93785.0,93784.0,0.053412]
[1735680804280,0.005,93785.0,93784.0,0.053412]
[1735680804691,0.053405,93797.0,93796.0,0.053405]
[1735680805182,0.00159978,93798.0,93784.0,0.0307]
[1735680805388,0.053407,93794.0,93784.0,0.0317]
[1735680805689,0.053407,93794.0,93792.0,0.053407]
[1735680805891,0.053407,93794.0,93793.0,0.053407]
[1735680807590,0.055407,93794.0,93793.0,0.053407]
[1735680807788,0.056407,93794.0,93793.0,0.053407]
[1735680811989,0.05341,93790.0,93789.0,0.053409]
[1735680812790,0.053415,93781.0,93780.0,0.053414]
[1735680813690,0.053415,93781.0,93773.0,0.0329]
[1735680813892,0.053417,93777.0,93776.0,0.053417]
[1735680815093,0.054417,93777.0,93776.0,0.059417]
[1735680816089,0.054417,93777.0,93776.0,0.060417]
[1735680817896,0.053417,93777.0,93776.0,0.056417]
[1735680819698,0.0319,93788.0,93776.0,0.056417]
[1735680819903,0.0319,93788.0,93778.0,0.05751822]
[1735680820291,0.0319,93788.0,93785.0,0.053411]
[1735680820492,0.0319,93788.0,93778.0,0.05751822]
[1735680820697,0.0319,93788.0,93787.0,0.05341]
[1735680821300,0.0536466,93788.0,93787.0,0.05341]
[1735680821485,0.0217466,93788.0,93787.0,0.05341]
[1735680821795,0.0608,93795.0,93794.0,0.053406]
[1735680823095,0.0628,93795.0,93794.0,0.053406]
[1735680823600,0.0638,93795.0,93794.0,0.053406]
[1735680825093,0.0618,93795.0,93794.0,0.053406]
[1735680825297,0.004,93795.0,93794.0,0.053406]
[1735680826105,0.003,93795.0,93794.0,0.053406]
[1735680826398,0.004,93795.0,93794.0,0.053406]
[1735680827898,0.001,93795.0,93794.0,0.053406]
[1735680828101,0.003,93795.0,93794.0,0.053406]
[1735680828800,0.003,93795.0,93794.0,0.07482041]
[1735680829201,0.04413065,93800.0,93794.0,0.07482041]
[1735680829399,0.04413065,93800.0,93799.0,0.414204]
[1735680830402,0.04513065,93800.0,93799.0,0.414204]
[1735680831104,0.04913065,93800.0,93799.0,0.414204]
[1735680831812,0.05013065,93800.0,93799.0,0.414204]
[1735680832805,0.04353086,93800.0,93799.0,0.414204]
[1735680834525,8.6e-07,93800.0,93799.0,0.714204]
[1735680838807,0.00159934,93827.0,93824.0,0.053389]
[1735680839008,0.0324,93842.0,93841.0,0.05338]
[1735680839207,0.1,93850.0,93841.0,0.05338]
[1735680839407,0.1,93850.0,93848.0,0.053376]
[1735680839917,0.1,93850.0,93849.0,0.053375]
[1735680841602,0.105,93850.0,93849.0,0.054375]
[1735680842508,0.107,93850.0,93849.0,0.055375]
[1735680843010,0.102,93850.0,93849.0,0.054375]
[1735680843206,0.107,93850.0,93849.0,0.054375]
[1735680848908,0.105,93850.0,93849.0,0.056375]
[1735680849518,0.1,93850.0,93849.0,0.056375]
[1735680849827,0.1,93850.0,93849.0,0.057375]
[1735680850418,0.0642,93867.0,93866.0,0.053365]
[1735680851729,0.0662,93867.0,93866.0,0.053365]
[1735680852817,0.0682,93867.0,93866.0,0.053365]
[1735680854128,0.0682,93867.0,93866.0,0.07469921]
[1735680854929,0.0682,93867.0,93866.0,0.053365]
[1735680855128,0.0682,93867.0,93855.0,0.02171276]
[1735680855330,0.7216,93856.0,93828.0,0.3608]
[1735680855529,0.08744786,93838.0,93829.0,0.053386]
[1735680855731,0.053387,93828.0,93827.0,0.19191262]
[1735680855931,0.053387,93828.0,93827.0,0.24530062]
[1735680856130,0.053387,93828.0,93827.0,0.053388]
[1735680857033,0.054387,93828.0,93827.0,0.053388]
[1735680857849,0.001,93828.0,93827.0,0.053388]
[1735680858049,0.002,93828.0,93827.0,0.053388]
[1735680859138,0.001,93828.0,93827.0,0.053388]
[1735680859345,0.0328,93829.0,93828.0,0.053387]
[1735680866455,0.0328,93829.0,93828.0,0.0756646]
[1735680867551,0.0328,93829.0,93828.0,0.053387]
[1735680867752,0.086187,93829.0,93828.0,0.053387]
[1735680868565,0.086187,93829.0,93828.0,0.055387]
[1735680869252,0.086187,93829.0,93828.0,0.056387]
[1735680869852,0.086187,93829.0,93828.0,0.055387]
[1735680870051,0.087187,93829.0,93828.0,0.055387]
[1735680870660,0.088187,93829.0,93828.0,0.053387]
[1735680873456,0.0348,93829.0,93828.0,0.053387]
[1735680874863,0.0338,93829.0,93828.0,0.055387]
[1735680875363,0.0328,93829.0,93828.0,0.056387]
[1735680878565,0.3608,93832.0,93831.0,0.053385]
[1735680880667,0.3608,93832.0,93829.0,0.053387]
[1735680880860,0.3608,93832.0,93831.0,0.053385]
[1735680881261,0.414185,93832.0,93831.0,0.053385]
[1735680886562,0.415185,93832.0,93831.0,0.053385]
[1735680887672,0.417185,93832.0,93831.0,0.053385]
[1735680888269,0.415185,93832.0,93831.0,0.053385]
[1735680888465,0.414185,93832.0,93831.0,0.053385]
[1735680892261,0.415185,93832.0,93831.0,0.053385]
[1735680892672,0.416185,93832.0,93831.0,0.053385]
[1735680893368,0.415185,93832.0,93831.0,0.053385]
[1735680893568,0.416185,93832.0,93831.0,0.053385]
[1735680893968,0.415185,93832.0,93831.0,0.053385]
[1735680894171,0.416185,93832.0,93831.0,0.053385]
[1735680894573,0.415185,93832.0,93831.0,0.053385]
[1735680894773,0.416185,93832.0,93831.0,0.053385]
[1735680894973,0.415185,93832.0,93831.0,0.053385]
[1735680895181,0.416185,93832.0,93831.0,0.053385]
[1735680895382,0.053389,93828.0,93827.0,0.053388]
[1735680897379,0.053389,93828.0,93827.0,0.056388]
[1735680897983,0.053389,93828.0,93827.0,0.054388]
[1735680902190,0.3608,93832.0,93827.0,0.054388]
[1735680902390,0.3608,93832.0,93831.0,0.053385]
[1735680904196,0.053381,93839.0,93838.0,0.053381]
[1735680905498,0.055381,93839.0,93838.0,0.053381]
[1735680905993,0.053382,93838.0,93826.0,0.00148]
[1735680906201,0.053382,93838.0,93826.0,0.053388]
[1735680906202,0.3608,93829.0,93826.0,0.053388]
[1735680906387,0.053388,93827.0,93826.0,0.053388]
[1735680907896,0.053388,93827.0,93826.0,0.056388]
[1735680908097,0.053388,93827.0,93826.0,0.057388]
[1735680908293,0.053388,93827.0,93826.0,0.054388]
[1735680908495,0.053388,93827.0,93826.0,0.057388]
[1735680908701,0.053388,93827.0,93826.0,0.056388]
[1735680908888,0.053388,93827.0,93826.0,0.057388]
[1735680910195,0.053388,93827.0,93826.0,0.054388]
[1735680910497,0.053388,93827.0,93826.0,0.057388]
[1735680915702,0.053388,93827.0,93826.0,0.058388]
[1735680917197,0.053388,93827.0,93826.0,0.055388]
[1735680917503,0.053388,93827.0,93826.0,0.059388]
[1735680918100,0.3608,93829.0,93826.0,0.059388]
[1735680918301,0.3608,93829.0,93828.0,0.053387]
[1735680918608,0.414187,93829.0,93828.0,0.053387]
[1735680919601,0.0706357,93829.0,93828.0,0.053387]
[1735680920505,0.0706357,93829.0,93828.0,0.054387]
[1735680921207,0.0706357,93829.0,93828.0,0.055387]
[1735680921408,0.2773735,93832.0,93828.0,0.055387]
[1735680921610,0.053387,93829.0,93828.0,0.055387]
[1735680926006,0.053387,93829.0,93828.0,0.002]